bitfinex/quotes_BTCUSD_20240826
["timestamp","ask_amount","ask_price","bid_price","bid_amount"]
[1724664146236,0.162092,63859.0,63858.0,1.2696]
[1724664146237,0.15869093,63859.0,63858.0,1.2696]
[1724664146648,0.15869093,63859.0,63858.0,0.956406]
[1724664150534,0.15869093,63859.0,63858.0,1.2696]
[1724664151376,0.15869093,63859.0,63854.0,0.00892457]
[1724664151377,0.0787,63858.0,63854.0,0.00892457]
[1724664151527,0.0787,63858.0,63850.0,0.000825]
[1724664151528,0.617143,63851.0,63850.0,0.000825]
[1724664151729,1.05627797,63851.0,63850.0,0.000825]
[1724664151973,1.28895945,63851.0,63850.0,0.000825]
[1724664152180,1.53898075,63851.0,63850.0,0.000825]
[1724664152389,1.44513746,63851.0,63850.0,0.000825]
[1724664152592,1.75836646,63851.0,63850.0,0.000825]
[1724664152801,1.44513746,63851.0,63850.0,0.000825]
[1724664153047,1.56236492,63851.0,63850.0,0.000825]
[1724664153504,1.53986385,63851.0,63850.0,0.001825]
[1724664153703,1.53986385,63851.0,63850.0,0.000825]
[1724664153904,1.53886385,63851.0,63850.0,0.000825]
[1724664154508,1.45413746,63851.0,63850.0,0.001825]
[1724664154708,1.44513746,63851.0,63850.0,0.000825]
[1724664154992,1.45513746,63851.0,63850.0,0.001825]
[1724664155193,1.46413746,63851.0,63850.0,0.002825]
[1724664155395,1.18708666,63851.0,63850.0,0.002825]
[1724664155755,1.17808666,63851.0,63850.0,0.001825]
[1724664155955,1.18708666,63851.0,63850.0,0.002825]
[1724664156442,1.11684513,63851.0,63850.0,0.002825]
[1724664158066,1.43007413,63851.0,63850.0,0.002825]
[1724664158459,1.47686511,63851.0,63850.0,0.002825]
[1724664159260,1.43007413,63851.0,63850.0,0.002825]
[1724664159404,1.47686511,63851.0,63850.0,0.002825]
[1724664159824,1.43007413,63851.0,63850.0,0.002825]
[1724664160258,1.47684591,63851.0,63850.0,0.002825]
[1724664160440,1.47684774,63851.0,63850.0,0.002825]
[1724664160640,1.47684774,63851.0,63825.0,0.000825]
[1724664160641,0.0639,63844.0,63825.0,0.314177]
[1724664160855,0.0821,63841.0,63826.0,0.313351]
[1724664161061,0.156656,63834.0,63829.0,0.156667]
[1724664161261,0.00340107,63833.0,63826.0,0.313351]
[1724664161467,0.0160148,63833.0,63826.0,0.313351]
[1724664161663,0.0160148,63833.0,63830.0,0.156665]
[1724664162078,0.0160148,63833.0,63829.0,0.001]
[1724664162079,0.0160148,63833.0,63831.0,0.156662]
[1724664162283,0.00340107,63832.0,63831.0,0.156662]
[1724664162727,0.01601043,63832.0,63831.0,0.156662]
[1724664162928,0.01260936,63832.0,63831.0,0.156662]
[1724664163189,0.00340107,63834.0,63831.0,0.156662]
[1724664163439,0.01261155,63833.0,63831.0,0.156662]
[1724664163634,0.00340107,63832.0,63829.0,0.313333]
[1724664163849,0.01260718,63831.0,63830.0,0.156665]
[1724664164980,0.01260718,63831.0,63829.0,0.002]
[1724664165178,0.00340107,63830.0,63829.0,0.156668]
[1724664165623,0.012605,63830.0,63829.0,0.156668]
[1724664165827,0.00340107,63833.0,63830.0,0.156665]
[1724664166651,0.00340107,63833.0,63829.0,0.006]
[1724664166652,0.78333,63830.0,63829.0,0.006]
[1724664166853,0.86243,63830.0,63829.0,0.006]
[1724664167694,0.86243,63830.0,63829.0,0.003]
[1724664168042,0.0791,63830.0,63828.0,0.000825]
[1724664168484,0.390608,63835.0,63830.0,0.156665]
[1724664168676,0.0773,63835.0,63830.0,0.313332]
[1724664168829,0.0773,63835.0,63831.0,0.313326]
[1724664169039,0.0773,63835.0,63829.0,0.002]
[1724664169234,0.0773,63835.0,63833.0,0.156657]
[1724664169717,0.0773,63835.0,63831.0,0.313325]
[1724664169718,0.0773,63835.0,63831.0,0.313327]
[1724664169893,0.0773,63835.0,63832.0,0.15666]
[1724664170106,0.0793,63835.0,63830.0,0.313329]
[1724664170419,0.0773,63835.0,63833.0,0.156658]
[1724664170738,0.0773,63835.0,63831.0,0.469987]
[1724664170943,0.0803,63835.0,63833.0,0.156658]
[1724664171342,0.0803,63835.0,63834.0,0.156656]
[1724664171565,0.0773,63835.0,63834.0,0.156656]
[1724664171762,0.0793,63835.0,63834.0,0.156656]
[1724664171959,0.0823,63835.0,63834.0,0.156656]
[1724664172408,0.0793,63835.0,63834.0,0.156656]
[1724664172753,0.0803,63835.0,63834.0,0.156656]
[1724664173051,0.0823,63835.0,63834.0,0.156656]
[1724664174190,0.0823,63835.0,63834.0,0.469968]
[1724664176701,0.0821115,63835.0,63834.0,0.469968]
[1724664178223,0.0821115,63835.0,63834.0,0.156656]
[1724664178628,0.0821115,63835.0,63834.0,0.469968]
[1724664178834,0.005,63835.0,63834.0,0.469968]
[1724664179293,0.01853932,63835.0,63834.0,0.469968]
[1724664179502,0.005,63835.0,63834.0,0.469968]
[1724664179707,0.01853932,63835.0,63834.0,0.469968]
[1724664179910,0.005,63835.0,63834.0,0.469968]
[1724664180200,0.01854271,63835.0,63834.0,0.469968]
[1724664180407,0.005,63835.0,63834.0,0.78328]
[1724664180825,0.01853834,63835.0,63834.0,0.78328]
[1724664181106,0.005,63835.0,63834.0,0.78328]
[1724664181307,0.01894301,63835.0,63834.0,0.78328]
[1724664181486,0.005,63835.0,63834.0,0.469968]
[1724664181688,0.01894301,63835.0,63834.0,0.469968]
[1724664181888,0.005,63835.0,63834.0,0.469968]
[1724664182062,0.01894301,63835.0,63834.0,0.469968]
[1724664182261,0.005,63835.0,63834.0,0.469968]
[1724664182692,0.01894301,63835.0,63834.0,0.469968]
[1724664182892,0.005,63835.0,63834.0,0.469968]
[1724664183107,0.01894301,63835.0,63834.0,0.469968]
[1724664183258,0.005,63835.0,63834.0,0.469968]
[1724664183452,0.01894301,63835.0,63834.0,0.469968]
[1724664185818,0.01894301,63835.0,63834.0,0.78328]
[1724664185981,0.01894301,63835.0,63834.0,0.469968]
[1724664186190,0.005,63835.0,63834.0,0.469968]
[1724664186387,0.01894301,63835.0,63834.0,0.469968]
[1724664187810,0.01894301,63835.0,63834.0,0.78328]
[1724664188015,0.01894301,63835.0,63834.0,0.469968]
[1724664192328,0.01894301,63835.0,63834.0,0.470793]
[1724664192561,0.01894301,63835.0,63834.0,0.784105]
[1724664192774,0.01985052,63835.0,63834.0,0.784105]
[1724664192985,0.00590751,63835.0,63834.0,0.784105]
[1724664193736,0.01985052,63835.0,63834.0,0.784105]
[1724664193976,0.00590751,63835.0,63834.0,0.784105]
[1724664194195,0.01985052,63835.0,63834.0,0.784105]
[1724664195691,0.08410751,63835.0,63834.0,0.470793]
[1724664195890,0.0980527,63835.0,63834.0,0.470793]
[1724664196496,0.10145377,63835.0,63834.0,0.470793]
[1724664197446,0.17173867,63835.0,63834.0,0.470793]
[1724664199156,0.10145377,63835.0,63834.0,0.470793]
[1724664199736,0.44541863,63835.0,63834.0,0.470793]
[1724664202220,0.53931778,63835.0,63834.0,0.470793]
[1724664204344,0.53931778,63835.0,63834.0,0.784105]
[1724664204694,0.53931778,63835.0,63834.0,0.470793]
[1724664205029,0.44541863,63835.0,63834.0,0.470793]
[1724664205205,0.53931778,63835.0,63834.0,0.470793]
[1724664205631,0.36721863,63835.0,63834.0,0.848705]
[1724664205837,0.09029135,63835.0,63834.0,0.535393]
[1724664206033,0.09029135,63835.0,63834.0,0.848705]
[1724664208874,0.09029135,63835.0,63834.0,0.784105]
[1724664209079,0.09029135,63835.0,63834.0,0.470793]
[1724664209080,0.23129135,63835.0,63834.0,0.470793]
[1724664210672,0.23128684,63835.0,63834.0,0.470793]
[1724664210884,0.1608527,63835.0,63834.0,0.000825]
[1724664211219,0.62560798,63835.0,63834.0,0.000825]
[1724664211420,0.5082151,63835.0,63834.0,0.000825]
[1724664212567,0.60213077,63835.0,63834.0,0.000825]
[1724664213299,0.62560954,63835.0,63834.0,0.157481]
[1724664214228,0.5082238,63835.0,63834.0,0.157481]
[1724664220017,0.50803526,63835.0,63834.0,0.157481]
[1724664220900,0.62553842,63835.0,63834.0,0.157481]
[1724664221072,0.50803526,63835.0,63834.0,0.157481]
[1724664224081,0.50803526,63835.0,63834.0,0.000825]
[1724664224308,0.50803526,63835.0,63834.0,0.157481]
[1724664224732,1.29130226,63835.0,63834.0,0.000825]
[1724664224841,1.11899605,63835.0,63834.0,0.000825]
[1724664225247,0.97799526,63835.0,63834.0,0.000825]
[1724664225442,1.11899605,63835.0,63834.0,0.000825]
[1724664226527,0.97799526,63835.0,63834.0,0.000825]
[1724664226667,1.11899605,63835.0,63834.0,0.000825]
[1724664227093,0.97799526,63835.0,63834.0,0.000825]
[1724664229718,1.11899605,63835.0,63834.0,0.000825]
[1724664230529,1.43230305,63835.0,63834.0,0.000825]
[1724664230892,2.23222595,63835.0,63834.0,0.000825]
[1724664231092,2.58696189,63835.0,63834.0,0.000825]
[1724664231242,2.58696189,63835.0,63830.0,0.000825]
[1724664231243,1.098644,63831.0,63830.0,0.000825]
[1724664231447,2.35488408,63831.0,63830.0,0.000825]
[1724664231648,2.85591355,63831.0,63830.0,0.000825]
[1724664232237,2.83140056,63831.0,63830.0,0.000825]
[1724664232895,2.84140056,63831.0,63830.0,0.001825]
[1724664233892,2.87791471,63831.0,63830.0,0.002825]
[1724664234294,2.85340056,63831.0,63830.0,0.002825]
[1724664234448,2.8779154,63831.0,63830.0,0.002825]
[1724664235304,2.85340056,63831.0,63830.0,0.002825]
[1724664235915,2.84590056,63831.0,63830.0,0.002825]
[1724664237694,3.00404136,63831.0,63830.0,0.002825]
[1724664237882,2.8704172,63831.0,63830.0,0.002825]
[1724664239318,3.00381512,63831.0,63830.0,0.002825]
[1724664239724,3.34165932,63831.0,63830.0,0.002825]
[1724664239911,3.18374476,63831.0,63830.0,0.002825]
[1724664240060,1.551916,63829.0,63828.0,0.000825]
[1724664240267,2.71441785,63829.0,63828.0,0.000825]
[1724664240447,3.02775485,63829.0,63828.0,0.000825]
[1724664240651,2.89436395,63829.0,63828.0,0.000825]
[1724664240967,2.89436395,63829.0,63797.0,0.000825]
[1724664240968,1.239627,63826.0,63797.0,0.000825]
[1724664241168,2.70774836,63826.0,63797.0,0.000825]
[1724664241400,0.470233,63798.0,63797.0,0.000825]
[1724664241933,0.17120568,63798.0,63797.0,0.000825]
[1724664243120,0.17620568,63798.0,63797.0,0.000825]
[1724664243324,0.49309575,63798.0,63797.0,0.000825]
[1724664243531,0.80658475,63798.0,63797.0,0.000825]
[1724664244574,0.81158475,63798.0,63797.0,0.000825]
[1724664245942,0.49809575,63798.0,63797.0,0.000825]
[1724664252017,1.10546169,63798.0,63797.0,0.000825]
[1724664252843,1.41895069,63798.0,63797.0,0.000825]
[1724664253412,1.41395069,63798.0,63797.0,0.000825]
[1724664253615,1.40895069,63798.0,63797.0,0.000825]
[1724664253800,1.41995069,63798.0,63797.0,0.000825]
[1724664268052,0.18163969,63798.0,63797.0,0.000825]
[1724664268258,0.02546168,63798.0,63797.0,0.615066]
[1724664268459,0.02546168,63798.0,63797.0,0.92856]
[1724664268669,0.011,63798.0,63797.0,0.92856]
[1724664269497,0.011,63798.0,63797.0,0.301572]
[1724664269905,0.011,63798.0,63797.0,0.615066]
[1724664270552,0.02527437,63798.0,63797.0,0.615066]
[1724664272005,0.79768538,63798.0,63797.0,0.000825]
[1724664272241,1.11117438,63798.0,63797.0,0.000825]
[1724664272647,1.42466338,63798.0,63797.0,0.000825]
[1724664273216,1.4244748,63798.0,63797.0,0.000825]
[1724664277456,1.49456503,63798.0,63797.0,0.000825]
[1724664278047,1.88900714,63798.0,63797.0,0.000825]
[1724664278267,1.77209271,63798.0,63797.0,0.000825]
[1724664282271,1.91227318,63798.0,63797.0,0.000825]
[1724664282571,1.77209271,63798.0,63797.0,0.000825]
[1724664282988,2.25352339,63798.0,63797.0,0.000825]
[1724664284238,2.27804958,63798.0,63797.0,0.000825]
[1724664284648,2.25252439,63798.0,63797.0,0.000825]
[1724664285312,2.25352339,63798.0,63797.0,0.000825]
[1724664285766,2.2780495,63798.0,63797.0,0.000825]
[1724664286133,2.25352339,63798.0,63797.0,0.000825]
[1724664286473,2.27804943,63798.0,63797.0,0.000825]
[1724664286857,2.25352339,63798.0,63797.0,0.000825]
[1724664287533,2.27804911,63798.0,63797.0,0.000825]
[1724664287904,2.25352339,63798.0,63797.0,0.000825]
[1724664290222,2.25412088,63798.0,63797.0,0.000825]
[1724664291204,2.27864684,63798.0,63797.0,0.000825]
[1724664291328,2.43685549,63798.0,63797.0,0.000825]
[1724664292279,2.54573027,63798.0,63797.0,0.000825]
[1724664293012,2.38752162,63798.0,63797.0,0.000825]
[1724664293827,1.097264,63795.0,63794.0,0.00825]
[1724664294057,1.78776631,63795.0,63794.0,0.00825]
[1724664294284,2.30759116,63795.0,63794.0,0.00825]
[1724664294456,2.28306369,63795.0,63794.0,0.00825]
[1724664295221,2.44178162,63795.0,63794.0,0.00825]
[1724664295444,2.46630888,63795.0,63794.0,0.00825]
[1724664295655,2.46330888,63795.0,63794.0,0.00825]
[1724664295794,2.47130888,63795.0,63794.0,0.00825]
[1724664296216,2.31406301,63795.0,63794.0,0.00825]
[1724664296413,2.3128077,63795.0,63794.0,0.00825]
[1724664296615,2.44652714,63795.0,63794.0,0.00825]
[1724664296842,2.47705455,63795.0,63794.0,0.00825]
[1724664297243,2.29428044,63795.0,63794.0,0.00825]
[1724664297446,2.45254564,63795.0,63794.0,0.00825]
[1724664300155,2.45200015,63795.0,63794.0,0.00825]
[1724664300921,3.02802663,63795.0,63794.0,0.00825]
[1724664301316,3.02802663,63795.0,63786.0,0.00825]
[1724664301317,1.558342,63787.0,63786.0,0.00825]
[1724664301525,2.6734954,63787.0,63786.0,0.00825]
[1724664301752,2.68683826,63787.0,63786.0,0.00825]
[1724664303322,2.67678693,63787.0,63786.0,0.00825]
[1724664303542,2.69078693,63787.0,63786.0,0.00825]
[1724664303747,1.097589,63776.0,63772.0,0.0615]
[1724664303955,1.097589,63776.0,63770.0,0.00825]
[1724664303956,1.84999086,63776.0,63770.0,0.00825]
[1724664304118,1.86326298,63776.0,63770.0,0.00825]
[1724664304729,2.32886436,63776.0,63770.0,0.00825]
[1724664305134,2.34086436,63776.0,63770.0,0.00825]
[1724664305944,2.33822591,63776.0,63770.0,0.00825]
[1724664306139,2.34922591,63776.0,63770.0,0.00825]
[1724664306409,2.48968567,63776.0,63770.0,0.00825]
[1724664306561,2.79259837,63776.0,63770.0,0.00825]
[1724664306761,2.66282291,63776.0,63770.0,0.00825]
[1724664307948,2.34030428,63776.0,63770.0,0.00825]
[1724664308147,2.19990147,63776.0,63770.0,0.00825]
[1724664308289,2.34030063,63776.0,63770.0,0.00825]
[1724664308903,2.19990147,63776.0,63770.0,0.00825]
[1724664310296,2.19990016,63776.0,63770.0,0.00825]
[1724664310539,2.19990016,63776.0,63775.0,0.0018936]
[1724664310740,2.7483998,63776.0,63775.0,0.0018936]
[1724664311584,2.659741,63776.0,63775.0,0.0018936]
[1724664312121,2.82329245,63776.0,63775.0,0.0018936]
[1724664312289,2.96350047,63776.0,63775.0,0.0018936]
[1724664312504,2.50368619,63776.0,63775.0,0.0018936]
[1724664312654,2.5036871,63776.0,63775.0,0.0018936]
[1724664313530,2.36347741,63776.0,63775.0,0.0018936]
[1724664313970,2.36347741,63776.0,63770.0,0.00825]
[1724664313971,1.181076,63771.0,63770.0,0.00825]
[1724664314176,1.86638484,63771.0,63770.0,0.00825]
[1724664314347,1.87956731,63771.0,63770.0,0.00825]
[1724664314725,1.76275253,63771.0,63770.0,0.00825]
[1724664314922,1.87956731,63771.0,63770.0,0.00825]
[1724664315733,1.76275253,63771.0,63770.0,0.00825]
[1724664315891,1.76256388,63771.0,63770.0,0.00825]
[1724664316087,1.76956388,63771.0,63770.0,0.00825]
[1724664316396,1.77556388,63771.0,63770.0,0.00825]
[1724664316771,2.14295754,63771.0,63770.0,0.00825]
[1724664317006,2.14295754,63771.0,63767.0,0.00825]
[1724664317007,1.17643635,63768.0,63767.0,0.00825]
[1724664317224,2.15830408,63768.0,63767.0,0.00825]
[1724664317393,2.78451449,63768.0,63767.0,0.00825]
[1724664317595,2.93766702,63768.0,63767.0,0.00825]
[1724664317979,2.797616,63768.0,63767.0,0.00825]
[1724664318188,3.43238368,63768.0,63767.0,0.00825]
[1724664318580,3.45538368,63768.0,63767.0,0.00825]
[1724664319348,3.299252,63768.0,63767.0,0.00825]
[1724664319738,3.327252,63768.0,63767.0,0.00825]
[1724664322195,0.32263535,63765.0,63764.0,0.00825]
[1724664322401,1.63763817,63765.0,63764.0,0.00825]
[1724664322601,2.42107185,63765.0,63764.0,0.00825]
[1724664322802,2.73472285,63765.0,63764.0,0.00825]
[1724664323381,2.57859117,63765.0,63764.0,0.00825]
[1724664323584,2.59259117,63765.0,63764.0,0.00825]
[1724664323811,2.59259117,63765.0,63744.0,0.0657]
[1724664323812,0.784375,63745.0,63744.0,0.0657]
[1724664324163,0.94055301,63745.0,63744.0,0.0657]
[1724664324361,0.95360837,63745.0,63744.0,0.0657]
[1724664326343,0.95660837,63745.0,63744.0,0.0657]
[1724664326567,0.96060837,63745.0,63744.0,0.0657]
[1724664327030,0.17704372,63745.0,63738.0,0.0791]
[1724664327224,0.470668,63739.0,63738.0,0.0791]
[1724664327455,0.94062501,63739.0,63738.0,0.0791]
[1724664327658,0.95534819,63739.0,63738.0,0.1396]
[1724664327865,0.64156919,63739.0,63738.0,0.1396]
[1724664329689,0.64256919,63739.0,63738.0,0.1396]
[1724664330187,0.32879019,63739.0,63738.0,0.1396]
[1724664333545,0.17190119,63739.0,63738.0,0.296492]
[1724664333750,0.01572318,63739.0,63738.0,0.610276]
[1724664334103,0.001,63739.0,63738.0,0.296492]
[1724664334314,0.32879794,63739.0,63738.0,0.1396]
[1724664334497,0.62784601,63739.0,63738.0,0.1396]
[1724664334693,0.64257694,63739.0,63738.0,0.1396]
[1724664335524,0.95635594,63739.0,63738.0,0.0605]
[1724664335952,0.95635594,63739.0,63738.0,0.061326]
[1724664336429,1.34657066,63739.0,63738.0,0.000826]
[1724664336646,2.30903901,63739.0,63738.0,0.000826]
[1724664336847,2.30903901,63739.0,63733.0,0.00825]
[1724664336848,0.86832035,63734.0,63733.0,0.00825]
[1724664337021,1.65210636,63734.0,63733.0,0.00825]
[1724664337252,1.66670657,63734.0,63733.0,0.00825]
[1724664337463,1.77910251,63734.0,63733.0,0.00825]
[1724664337637,2.03644701,63734.0,63733.0,0.00825]
[1724664337870,2.3610576,63734.0,63733.0,0.00825]
[1724664338098,1.92050657,63734.0,63733.0,0.00825]
[1724664338947,1.99037003,63734.0,63733.0,0.00825]
[1724664339158,2.35938281,63734.0,63733.0,0.00825]
[1724664339329,1.9440762,63734.0,63733.0,0.00825]
[1724664339792,1.9580762,63734.0,63733.0,0.00825]
[1724664340010,1.7930762,63734.0,63733.0,0.00825]
[1724664340377,1.74650657,63734.0,63733.0,0.00825]
[1724664340735,1.76050657,63734.0,63733.0,0.00825]
[1724664340937,1.38009222,63734.0,63733.0,0.00825]
[1724664341139,1.29709222,63734.0,63733.0,0.00825]
[1724664344127,1.75940657,63734.0,63733.0,0.00825]
[1724664344294,1.82929937,63734.0,63733.0,0.00825]
[1724664344525,2.10540311,63734.0,63733.0,0.00825]
[1724664344688,2.22157455,63734.0,63733.0,0.00825]
[1724664344890,1.41297335,63732.0,63731.0,0.00070156]
[1724664345140,2.08912123,63732.0,63731.0,0.00070156]
[1724664345339,1.73219408,63732.0,63731.0,0.00070156]
[1724664345843,2.10144377,63732.0,63731.0,0.00070156]
[1724664346041,1.74417906,63732.0,63731.0,0.00070156]
[1724664346246,1.75617906,63732.0,63731.0,0.00070156]
[1724664346621,1.75617906,63732.0,63722.0,0.00826]
[1724664346622,1.098503,63723.0,63722.0,0.00826]
[1724664346828,1.26668687,63723.0,63722.0,0.00826]
[1724664347230,1.91908145,63723.0,63722.0,0.00826]
[1724664347632,2.77123863,63723.0,63722.0,1e-06]
[1724664347832,3.34331628,63723.0,63722.0,1e-06]
[1724664348060,0.78559035,63712.0,63711.0,0.00866]
[1724664348231,1.60960659,63712.0,63711.0,0.00866]
[1724664348410,1.93549686,63712.0,63711.0,0.00866]
[1724664348616,2.20351262,63712.0,63711.0,0.00866]
[1724664348862,2.02379686,63712.0,63711.0,0.00866]
[1724664349060,1.77493738,63712.0,63711.0,0.00866]
[1724664349273,1.66307063,63712.0,63711.0,0.00866]
[1724664349681,1.67707063,63712.0,63711.0,0.00866]
[1724664350341,1.69107063,63712.0,63711.0,0.00866]
[1724664350719,1.69081443,63712.0,63711.0,0.00866]
[1724664350969,1.37634828,63712.0,63711.0,0.00866]
[1724664351180,1.29484828,63712.0,63711.0,0.00866]
[1724664351620,1.37820243,63712.0,63711.0,0.00866]
[1724664351837,1.40120243,63712.0,63711.0,0.00866]
[1724664351959,1.37820243,63712.0,63711.0,0.00866]
[1724664352866,1.98754066,63712.0,63711.0,0.00866]
[1724664352984,1.65062866,63712.0,63711.0,0.00866]
[1724664354410,1.37820243,63712.0,63711.0,0.00866]
[1724664354712,1.37764828,63712.0,63711.0,0.00866]
[1724664355122,1.37820243,63712.0,63711.0,0.00866]
[1724664355327,1.29484828,63712.0,63711.0,0.00866]
[1724664357788,0.98093628,63712.0,63711.0,0.00866]
[1724664358164,0.66702428,63712.0,63711.0,0.00866]
[1724664358375,0.19615628,63712.0,63711.0,0.00866]
[1724664358534,0.35311228,63712.0,63711.0,0.09026]
[1724664359177,0.19615628,63712.0,63711.0,0.15266]
[1724664359587,0.19615628,63712.0,63711.0,0.309618]
[1724664359814,0.18417801,63712.0,63711.0,0.623535]
[1724664360018,0.1960051,63712.0,63711.0,0.623535]
[1724664360215,0.1960051,63712.0,63711.0,0.15266]
[1724664360638,0.1960051,63712.0,63711.0,0.07106]
[1724664360639,0.6668731,63712.0,63711.0,0.07106]
[1724664360910,0.9807851,63712.0,63711.0,0.00866]
[1724664361076,1.2946971,63712.0,63711.0,0.00866]
[1724664361422,0.9807851,63712.0,63711.0,0.00866]
[1724664362715,0.1960051,63712.0,63711.0,0.00866]
[1724664362953,0.1960051,63712.0,63711.0,0.225918]
[1724664363255,0.1960051,63712.0,63711.0,0.06896]
[1724664364247,0.18417801,63712.0,63711.0,0.301118]
[1724664364459,0.19612376,63712.0,63711.0,0.615035]
[1724664364661,0.03994575,63712.0,63711.0,0.929952]
[1724664364868,0.028,63712.0,63711.0,1.243869]
[1724664365253,0.00090971,63723.0,63722.0,0.785657]
[1724664365451,0.00090971,63723.0,63722.0,0.927657]
[1724664365657,0.15708772,63723.0,63722.0,0.142]
[1724664366044,0.16708325,63723.0,63722.0,0.142]
[1724664366248,0.01090524,63723.0,63722.0,0.613794]
[1724664366419,0.01090524,63723.0,63722.0,0.927657]
[1724664366633,0.00090971,63723.0,63722.0,0.926657]
[1724664368729,0.64287902,63723.0,63722.0,0.142]
[1724664369420,0.95673702,63723.0,63722.0,0.142]
[1724664371224,0.470824,63718.0,63717.0,0.078]
[1724664371451,0.47083,63717.0,63716.0,0.0662]
[1724664371684,0.63702127,63717.0,63716.0,0.0662]
[1724664372133,0.32313427,63717.0,63716.0,0.0662]
[1724664372336,0.16619127,63717.0,63716.0,0.0662]
[1724664372956,0.17119127,63717.0,63716.0,0.0662]
[1724664373174,0.16619127,63717.0,63716.0,0.0662]
[1724664373354,0.01001326,63717.0,63716.0,0.1449]
[1724664373551,0.01001326,63717.0,63716.0,0.301846]
[1724664373846,0.01501326,63717.0,63716.0,0.301846]
[1724664374283,0.02201326,63717.0,63716.0,0.301846]
[1724664374900,0.02201326,63717.0,63716.0,0.615738]
[1724664376898,0.012,63717.0,63716.0,0.615738]
[1724664377860,0.012,63717.0,63716.0,0.92963]
[1724664379316,0.012,63717.0,63716.0,1.243522]
[1724664380465,0.01181112,63717.0,63716.0,1.243522]
[1724664381643,0.01181112,63717.0,63716.0,1.244522]
[1724664381868,0.01181112,63717.0,63716.0,0.93063]
[1724664383313,0.01181112,63717.0,63716.0,0.89166865]
[1724664384059,0.01181112,63717.0,63716.0,1.20556065]
[1724664387634,0.01181112,63717.0,63716.0,1.51945265]
[1724664387862,0.01181112,63717.0,63716.0,1.69863066]
[1724664388507,0.00481112,63717.0,63716.0,1.69863066]
[1724664389116,0.00090971,63723.0,63722.0,1.09852]
[1724664389356,0.00090971,63723.0,63722.0,1.23962]
[1724664390411,0.00090971,63723.0,63722.0,0.926757]
[1724664390617,0.00090971,63723.0,63722.0,0.850057]
[1724664390817,0.00390971,63723.0,63722.0,0.850057]
[1724664390993,0.00390971,63723.0,63722.0,0.471794]
[1724664391234,0.00390971,63723.0,63714.0,0.001]
[1724664391235,0.156943,63718.0,63714.0,0.001]
[1724664391431,0.156943,63718.0,63712.0,0.314736]
[1724664391432,0.00340107,63718.0,63717.0,0.156943]
[1724664391657,0.30198772,63723.0,63717.0,0.156943]
[1724664391658,0.30198772,63723.0,63717.0,0.313887]
[1724664391858,0.30198772,63723.0,63715.0,0.001]
[1724664391859,0.14580971,63723.0,63718.0,0.313881]
[1724664392059,0.07920971,63723.0,63718.0,0.313881]
[1724664392259,0.07920971,63723.0,63720.0,0.156935]
[1724664392462,0.00090971,63723.0,63720.0,0.156935]
[1724664392663,0.00090971,63723.0,63722.0,0.156931]
[1724664392996,0.00090971,63723.0,63722.0,0.470794]
[1724664393219,0.00090971,63723.0,63722.0,0.156931]
[1724664393785,0.00390971,63723.0,63722.0,0.156931]
[1724664393988,0.00390971,63723.0,63722.0,0.470794]
[1724664394445,0.00090971,63723.0,63722.0,0.470794]
[1724664394650,0.00390971,63723.0,63722.0,0.470794]
[1724664395606,0.00390971,63723.0,63722.0,0.471794]
[1724664396909,0.00390971,63723.0,63722.0,0.470794]
[1724664397122,0.00390971,63723.0,63719.0,0.156937]
[1724664397344,0.082,63721.0,63717.0,0.314886]
[1724664397552,0.082,63721.0,63719.0,0.156939]
[1724664397553,0.00340107,63720.0,63719.0,0.156939]
[1724664397760,0.082,63721.0,63719.0,0.156939]
[1724664397983,0.0077917,63720.0,63719.0,0.156939]
[1724664398398,0.0077917,63720.0,63716.0,0.000825]
[1724664398399,0.16396971,63720.0,63716.0,0.000825]
[1724664398633,0.16034007,63719.0,63716.0,0.000825]
[1724664399024,0.00778951,63718.0,63716.0,0.000825]
[1724664399698,0.00778951,63718.0,63717.0,0.002]
[1724664399897,0.00778951,63718.0,63716.0,0.000825]
[1724664400351,0.00778951,63718.0,63716.0,0.005825]
[1724664401175,0.00778951,63718.0,63716.0,0.000825]
[1724664402519,0.00778951,63718.0,63717.0,0.005]
[1724664402919,0.00778951,63718.0,63716.0,0.000825]
[1724664403053,0.00778951,63718.0,63716.0,0.005825]
[1724664403480,0.31728807,63717.0,63716.0,0.000825]
[1724664403687,0.48203293,63717.0,63716.0,0.000825]
[1724664404476,0.48203293,63717.0,63716.0,0.005825]
[1724664404967,0.16814593,63717.0,63716.0,0.005825]
[1724664405346,0.01120293,63717.0,63716.0,0.005825]
[1724664405580,0.00780186,63717.0,63716.0,0.005825]
[1724664406463,0.31311601,63720.0,63716.0,0.15777]
[1724664406667,0.00780186,63717.0,63716.0,0.000825]
[1724664406877,0.0802,63717.0,63716.0,0.006825]
[1724664407087,0.09140293,63717.0,63716.0,0.006825]
[1724664407308,0.08800186,63717.0,63716.0,0.006825]
[1724664407715,0.08700186,63717.0,63716.0,0.000825]
[1724664407918,0.08700186,63717.0,63716.0,0.001825]
[1724664408353,0.08700186,63717.0,63716.0,0.000825]
[1724664408799,0.09040293,63717.0,63716.0,0.000825]
[1724664409212,0.13723538,63717.0,63716.0,0.000825]
[1724664409428,0.29417838,63717.0,63716.0,0.000825]
[1724664409632,0.56423293,63717.0,63716.0,0.000825]
[1724664410340,0.63448161,63717.0,63716.0,0.000825]
[1724664410556,1.47953362,63717.0,63716.0,0.000825]
[1724664410780,1.75564396,63717.0,63716.0,0.000825]
[1724664410990,1.75734536,63717.0,63716.0,0.000825]
[1724664412242,1.75434536,63717.0,63716.0,0.000825]
[1724664413110,1.76634536,63717.0,63716.0,0.000825]
[1724664413310,1.76134536,63717.0,63716.0,0.000825]
[1724664413519,1.75434536,63717.0,63716.0,0.000825]
[1724664413722,1.75934536,63717.0,63716.0,0.000825]
[1724664413959,1.76634536,63717.0,63716.0,0.000825]
[1724664419941,1.44905729,63717.0,63716.0,0.000825]
[1724664420437,0.64680987,63717.0,63716.0,0.000825]
[1724664420704,0.69361992,63717.0,63716.0,0.000825]
[1724664421217,0.96160438,63717.0,63716.0,0.000825]
[1724664422208,0.96134818,63717.0,63716.0,0.000825]
[1724664422932,1.00815823,63717.0,63716.0,0.000825]